bitfinex-derivatives/quotes_BTCF0:USTF0_20250508
["timestamp","ask_amount","ask_price","bid_price","bid_amount"]
[1746715542687,0.7896663,99653.0,99652.0,0.3266283]
[1746715542990,1.2896663,99653.0,99652.0,0.3266283]
[1746715543388,1.2896663,99653.0,99652.0,0.12596]
[1746715543689,1.2896663,99653.0,99652.0,0.12696]
[1746715544189,1.2896663,99653.0,99652.0,0.12496]
[1746715544383,1.2896663,99653.0,99652.0,0.15646]
[1746715544584,1.3209663,99653.0,99652.0,0.15646]
[1746715545888,1.3209663,99653.0,99652.0,0.09456]
[1746715547981,1.3209663,99653.0,99652.0,0.3581283]
[1746715547982,1.2586663,99653.0,99652.0,0.3581283]
[1746715548186,0.89,99653.0,99652.0,0.3581283]
[1746715548797,1.0906663,99653.0,99652.0,0.3581283]
[1746715548994,1.1228663,99653.0,99652.0,0.3581283]
[1746715549793,0.67,99653.0,99652.0,0.3581283]
[1746715550394,0.61,99653.0,99652.0,0.3581283]
[1746715550588,0.11,99653.0,99652.0,0.3581283]
[1746715552493,0.3106663,99653.0,99652.0,0.3581283]
[1746715552682,0.0501631,99660.0,99657.0,0.0501641]
[1746715552884,0.37,99660.0,99659.0,0.2006542]
[1746715553087,0.2326393,99667.0,99666.0,0.2006401]
[1746715553286,0.250812,99663.0,99662.0,0.2006466]
[1746715553595,0.640812,99663.0,99662.0,0.2006466]
[1746715553797,0.674012,99663.0,99662.0,0.2006466]
[1746715554796,0.675012,99663.0,99662.0,0.2006466]
[1746715555091,0.2508171,99661.0,99660.0,0.2006515]
[1746715555390,0.2508171,99661.0,99656.0,0.3608]
[1746715555391,0.2006582,99657.0,99656.0,0.3608]
[1746715555591,0.5506582,99657.0,99656.0,0.3608]
[1746715556394,0.5506582,99657.0,99656.0,0.5614602]
[1746715556695,0.5506582,99657.0,99656.0,0.6540202]
[1746715557992,0.5506582,99657.0,99656.0,0.66922023]
[1746715558896,0.5506582,99657.0,99656.0,0.6540202]
[1746715559096,0.35,99657.0,99656.0,0.6540202]
[1746715559298,0.5506582,99657.0,99656.0,0.6540202]
[1746715559998,0.5506582,99657.0,99656.0,0.45336]
[1746715560298,0.5506582,99657.0,99656.0,0.09256]
[1746715560497,0.5606582,99657.0,99656.0,0.09256]
[1746715560697,0.2007065,99633.0,99625.0,0.3608]
[1746715560896,0.4507065,99633.0,99632.0,0.01747849]
[1746715561092,0.6187065,99633.0,99632.0,0.21818699]
[1746715561290,0.6187065,99633.0,99632.0,0.03268446]
[1746715561499,0.6516065,99633.0,99632.0,0.04896629]
[1746715561801,0.6823065,99633.0,99632.0,0.24967479]
[1746715561994,0.6823065,99633.0,99632.0,0.24446882]
[1746715562300,0.6823065,99633.0,99632.0,0.22899771]
[1746715563497,0.6823065,99633.0,99632.0,0.02828921]
[1746715563894,0.8123065,99633.0,99632.0,0.01200738]
[1746715564199,1.1431065,99633.0,99632.0,0.02724106]
[1746715564398,0.2007146,99629.0,99628.0,0.00100373]
[1746715564594,0.6107146,99629.0,99628.0,3e-08]
[1746715564792,0.7110866,99629.0,99628.0,3e-08]
[1746715565196,0.8790866,99629.0,99628.0,3e-08]
[1746715565395,0.8790866,99629.0,99628.0,0.00600003]
[1746715566298,0.8790866,99629.0,99628.0,0.00100003]
[1746715566503,0.2007247,99624.0,99612.0,0.01694761]
[1746715566705,0.2007488,99612.0,99611.0,0.2007501]
[1746715566899,0.9015488,99612.0,99611.0,0.2007501]
[1746715567903,0.9015488,99612.0,99611.0,0.2017501]
[1746715568199,0.9015488,99612.0,99611.0,0.02542027]
[1746715568905,0.9015488,99612.0,99611.0,0.00854226]
[1746715569202,0.9015488,99612.0,99611.0,0.20929316]
[1746715569394,0.9015488,99612.0,99611.0,0.00954226]
[1746715570098,0.9015488,99612.0,99611.0,0.0336]
[1746715570404,0.9015488,99612.0,99611.0,0.0649]
[1746715570807,0.200765,99604.0,99603.0,0.00100398]
[1746715571100,0.951565,99604.0,99603.0,0.00100398]
[1746715571696,0.951565,99604.0,99603.0,0.04006112]
[1746715571896,1.451565,99604.0,99603.0,0.07136112]
[1746715572096,1.451565,99604.0,99603.0,0.01646112]
[1746715572899,1.451565,99604.0,99603.0,0.04946112]
[1746715573297,1.451565,99604.0,99603.0,0.08036112]
[1746715573494,1.451565,99604.0,99603.0,0.28112812]
[1746715573698,1.090765,99604.0,99603.0,0.28112812]
[1746715573999,0.700765,99604.0,99603.0,0.28112812]
[1746715574200,0.700765,99604.0,99603.0,0.44912812]
[1746715574396,0.200765,99604.0,99603.0,0.44912812]
[1746715575301,0.390765,99604.0,99603.0,0.28112812]
[1746715576200,0.390765,99604.0,99603.0,0.44912812]
[1746715576900,0.390765,99604.0,99603.0,0.46449076]
[1746715577605,0.390765,99604.0,99603.0,0.82529076]
[1746715579206,0.390765,99604.0,99603.0,0.62452376]
[1746715579507,0.390765,99604.0,99603.0,0.82529076]
[1746715580208,0.390765,99604.0,99603.0,0.65729076]
[1746715582113,0.590765,99604.0,99603.0,0.65729076]
[1746715582309,0.590765,99604.0,99603.0,0.65629076]
[1746715583412,0.590765,99604.0,99603.0,0.74437076]
[1746715583612,0.592765,99604.0,99603.0,0.74437076]
[1746715584006,0.590765,99604.0,99603.0,0.38357076]
[1746715584211,0.203765,99604.0,99603.0,0.74037076]
[1746715585209,0.351765,99604.0,99603.0,0.74037076]
[1746715585810,0.200764,99605.0,99604.0,0.2509517]
[1746715586010,0.0025,99608.0,99607.0,0.2007589]
[1746715586210,0.6117013,99630.0,99607.0,0.37616264]
[1746715586407,0.9617013,99630.0,99629.0,0.2007146]
[1746715587010,0.0319,99643.0,99629.0,0.568533]
[1746715587218,0.2006918,99641.0,99640.0,0.2006884]
[1746715587513,0.5406918,99641.0,99640.0,0.21726423]
[1746715587709,0.5406918,99641.0,99640.0,0.01657583]
[1746715587915,0.2006924,99640.0,99639.0,0.0636]
[1746715588115,0.5706924,99640.0,99639.0,0.0636]
[1746715588313,0.6030924,99640.0,99639.0,0.0636]
[1746715589013,0.6080924,99640.0,99639.0,0.07982791]
[1746715589218,0.7760924,99640.0,99639.0,0.07982791]
[1746715589416,0.7760924,99640.0,99639.0,0.0964116]
[1746715590212,0.7760924,99640.0,99639.0,0.0974116]
[1746715590213,0.6130924,99640.0,99639.0,0.0974116]
[1746715591023,0.6130924,99640.0,99639.0,0.08082791]
[1746715591518,0.6130924,99640.0,99639.0,0.28152231]
[1746715591718,0.38,99640.0,99639.0,0.28152231]
[1746715591921,0.5806924,99640.0,99639.0,0.29706869]
[1746715593622,0.5806924,99640.0,99639.0,0.29710226]
[1746715593824,0.5806924,99640.0,99639.0,0.28152231]
[1746715594122,0.5806924,99640.0,99639.0,0.08082791]
[1746715594512,0.5806924,99640.0,99639.0,0.01722791]
[1746715594915,0.5806924,99640.0,99639.0,0.21792231]
[1746715595118,0.4,99640.0,99639.0,0.64142231]
[1746715595323,0.00150602,99648.0,99647.0,0.2006783]
[1746715595625,0.00150602,99648.0,99647.0,0.57664822]
[1746715595922,0.2006623,99655.0,99648.0,0.2006763]
[1746715596221,0.2006571,99658.0,99648.0,0.24856008]
[1746715596425,0.2006609,99656.0,99648.0,0.29422462]
[1746715596723,0.6909,99662.0,99648.0,0.29422462]
[1746715596926,0.8915481,99662.0,99661.0,0.2006501]
[1746715597122,0.5822481,99662.0,99661.0,0.2922101]
[1746715597321,0.5822481,99662.0,99661.0,0.30737464]
[1746715597722,0.5822481,99662.0,99661.0,0.36807464]
[1746715598317,1.0882481,99662.0,99661.0,0.36907464]
[1746715598514,1.0882481,99662.0,99661.0,0.16842454]
[1746715599231,1.0932481,99662.0,99661.0,0.16842454]
[1746715599527,0.511,99662.0,99661.0,0.38475831]
[1746715599931,0.011,99662.0,99661.0,0.38475831]
[1746715600514,0.2372481,99662.0,99661.0,0.38375831]
[1746715600719,0.4572481,99662.0,99661.0,0.38375831]
[1746715600919,0.4879481,99662.0,99661.0,0.38375831]
[1746715601127,0.4879481,99662.0,99661.0,0.36859377]
[1746715601431,0.4879481,99662.0,99661.0,0.36859253]
[1746715601926,0.4879481,99662.0,99661.0,0.3529101]
[1746715602128,0.4879481,99662.0,99661.0,0.36046777]
[1746715602527,0.4859481,99662.0,99661.0,0.36046777]
[1746715603620,0.4246481,99662.0,99661.0,0.36046777]
[1746715604722,0.4560481,99662.0,99661.0,0.36046777]
[1746715608922,0.2554,99662.0,99661.0,0.3761502]
[1746715609130,0.002,99663.0,99662.0,0.2006481]
[1746715609330,0.002,99693.0,99669.0,0.200634]
[1746715609531,0.0321,99688.0,99673.0,0.200626]
[1746715609726,0.0321,99688.0,99673.0,0.57710843]
[1746715609936,0.0321,99688.0,99673.0,0.67743348]
[1746715610131,0.0321,99688.0,99673.0,0.84543348]
[1746715610332,0.0321,99688.0,99673.0,0.91123348]
[1746715610730,0.002,99674.0,99673.0,0.91123348]
[1746715611640,0.002,99674.0,99673.0,0.81090548]
[1746715612333,0.001,99674.0,99673.0,0.64390548]
[1746715614540,0.001,99674.0,99673.0,0.64390607]
[1746715614939,0.001,99674.0,99673.0,0.65898349]
[1746715616944,0.001,99674.0,99673.0,0.75050349]
[1746715618435,0.001,99674.0,99673.0,0.75050373]
[1746715619735,0.001,99674.0,99673.0,0.65898373]
[1746715619937,0.601624,99674.0,99673.0,0.12327773]
[1746715620138,0.769624,99674.0,99673.0,0.12327773]
[1746715620440,0.769624,99674.0,99673.0,0.32390373]
[1746715620836,0.830224,99674.0,99673.0,0.32390373]
[1746715621340,0.830224,99674.0,99673.0,0.12327773]
[1746715622340,0.830224,99674.0,99673.0,0.03175773]
[1746715622741,1.191024,99674.0,99673.0,0.03175773]
[1746715622940,1.191024,99674.0,99673.0,0.01607742]
[1746715623444,1.691024,99674.0,99673.0,0.01507742]
[1746715624534,1.1296,99674.0,99673.0,0.21570342]
[1746715624740,1.1005,99674.0,99673.0,0.23138696]
[1746715625037,1.1005,99674.0,99673.0,0.21570342]
[1746715625245,0.9325,99674.0,99673.0,0.2313858]
[1746715625740,0.9325,99674.0,99673.0,0.23138479]
[1746715625944,0.902,99674.0,99673.0,0.23138479]
[1746715626137,0.9346,99674.0,99673.0,0.23138479]
[1746715626339,0.502,99674.0,99673.0,0.23138479]
[1746715627040,0.002,99674.0,99673.0,0.23138479]
[1746715627749,0.0025,99683.0,99682.0,0.2006079]
[1746715627950,0.0025,99683.0,99682.0,0.57708927]
[1746715628146,0.0311,99690.0,99689.0,0.2005938]
[1746715628448,0.31,99690.0,99689.0,0.30735517]
[1746715628749,0.31,99690.0,99689.0,0.32243259]
[1746715629250,0.31,99690.0,99689.0,0.38413259]
[1746715629445,0.002,99693.0,99692.0,0.2005878]
[1746715629636,0.002,99693.0,99692.0,0.59214659]
[1746715630742,0.002,99693.0,99692.0,0.66754522]
[1746715630943,0.002,99693.0,99692.0,0.68322256]
[1746715631143,0.002,99693.0,99692.0,0.69883546]
[1746715631650,0.152,99693.0,99692.0,0.69883546]
[1746715631850,0.156,99693.0,99692.0,0.69883546]
[1746715632052,0.16,99693.0,99692.0,0.69883546]
[1746715632452,0.3605857,99693.0,99692.0,0.49824766]
[1746715632643,0.5705857,99693.0,99692.0,0.49824766]
[1746715632956,0.5705857,99693.0,99692.0,0.69883546]
[1746715633151,0.7385857,99693.0,99692.0,0.69883546]
[1746715633350,0.7707857,99693.0,99692.0,0.69883546]
[1746715633746,0.5702,99693.0,99692.0,0.69883546]
[1746715634154,0.4022,99693.0,99692.0,0.69883546]
[1746715634350,0.006,99693.0,99692.0,0.69883546]
[1746715634552,0.146,99693.0,99692.0,0.69883578]
[1746715636456,0.002,99693.0,99692.0,0.69883578]
[1746715637156,0.002,99693.0,99692.0,0.92683578]
[1746715638055,0.002,99693.0,99692.0,0.75883578]
[1746715638253,0.002,99693.0,99692.0,0.75883474]
[1746715639045,0.002,99693.0,99692.0,0.92683474]
[1746715639860,0.0005,99701.0,99695.0,0.0501454]
[1746715640063,0.2005424,99715.0,99700.0,0.3608]
[1746715640364,0.39,99715.0,99714.0,0.2005404]
[1746715640551,0.39,99715.0,99714.0,0.10675662]
[1746715640552,0.5905415,99715.0,99714.0,0.10675662]
[1746715640753,0.6221415,99715.0,99714.0,0.30730012]
[1746715640954,0.6221415,99715.0,99714.0,0.12183404]
[1746715641166,0.7901415,99715.0,99714.0,0.12183404]
[1746715641854,0.7941415,99715.0,99714.0,0.12183404]
[1746715642054,0.7941415,99715.0,99714.0,0.12183273]
[1746715642263,1.2941415,99715.0,99714.0,0.12183273]
[1746715642759,0.0501362,99714.0,99697.0,0.2005761]
[1746715642965,0.2005757,99698.0,99697.0,0.2005761]
[1746715643160,0.5805757,99698.0,99697.0,0.2005761]
[1746715643353,0.2005777,99697.0,99696.0,0.09108]
[1746715643554,0.6319777,99697.0,99696.0,0.2916597]
[1746715644062,0.7999777,99697.0,99696.0,0.2916597]
[1746715645951,0.7999777,99697.0,99696.0,0.09108]
[1746715646158,0.2005857,99694.0,99693.0,0.2005844]
[1746715646356,0.5805857,99694.0,99693.0,0.09108]
[1746715646558,0.6115857,99694.0,99693.0,0.09108]
[1746715647057,0.6115857,99694.0,99693.0,0.2916657]
[1746715647259,0.7795857,99694.0,99693.0,0.2916657]
[1746715650155,0.7795857,99694.0,99693.0,0.3232657]
[1746715650569,0.7795857,99694.0,99693.0,0.3552657]
[1746715652971,0.548,99694.0,99693.0,0.3552657]
[1746715653172,0.38,99694.0,99693.0,0.3552657]
[1746715653561,0.0346,99706.0,99705.0,0.2005616]
[1746715653763,0.6326605,99706.0,99705.0,0.2005616]
[1746715654173,0.8313605,99706.0,99705.0,0.2005616]
[1746715654369,1.3313605,99706.0,99705.0,0.2005616]
[1746715654575,1.3313605,99706.0,99705.0,0.21623874]
[1746715654768,1.3313605,99706.0,99705.0,0.29295122]
[1746715655068,1.3333605,99706.0,99705.0,0.29295122]
[1746715655676,1.3353605,99706.0,99705.0,0.29295122]
[1746715656087,1.1673605,99706.0,99705.0,0.29295122]
[1746715656771,0.904,99706.0,99705.0,0.29295122]
[1746715656974,0.504,99706.0,99705.0,0.29295122]
[1746715657968,0.004,99706.0,99705.0,0.29295122]
[1746715658174,0.004,99706.0,99705.0,0.53095122]
[1746715659468,0.00400526,99714.0,99713.0,0.2005455]
[1746715659771,0.00400526,99714.0,99713.0,0.66770264]
[1746715659965,0.00400526,99714.0,99713.0,0.68331512]
[1746715660276,0.001,99724.0,99722.0,0.2005274]
[1746715660464,0.3325254,99723.0,99722.0,0.59261702]
[1746715660774,0.33453095,99723.0,99722.0,0.59261702]
[1746715661170,0.13400555,99723.0,99722.0,0.82551702]
[1746715661778,0.00400555,99723.0,99722.0,0.82551702]
[1746715662074,0.00400555,99723.0,99722.0,0.92371198]
[1746715662275,0.24003095,99723.0,99722.0,0.92371198]
[1746715662475,0.03950555,99723.0,99722.0,0.92371198]
[1746715662676,0.24003095,99723.0,99722.0,0.92371198]
[1746715662875,0.14950555,99723.0,99722.0,0.92371198]
[1746715663066,0.00900555,99723.0,99722.0,0.92371198]
[1746715663269,0.01300555,99723.0,99722.0,0.92371198]
[1746715663466,0.0501209,99744.0,99722.0,0.72318458]
[1746715663668,0.28311779,99741.0,99740.0,0.2004912]
[1746715663964,0.54311779,99741.0,99740.0,0.01567714]
[1746715664169,1.07311779,99741.0,99740.0,0.03128962]
[1746715665070,1.07711779,99741.0,99740.0,0.03128962]
[1746715665268,1.24511779,99741.0,99740.0,0.03128962]
[1746715666575,1.24811779,99741.0,99740.0,0.03128424]
[1746715667369,1.34837779,99741.0,99740.0,0.01561248]
[1746715667568,1.24811779,99741.0,99740.0,0.01561248]
[1746715667771,1.34837779,99741.0,99740.0,0.01561248]
[1746715669270,0.2005153,99728.0,99727.0,0.09064]
[1746715669578,0.5605153,99728.0,99727.0,0.09064]
[1746715669972,0.2005254,99723.0,99722.0,0.3608]
[1746715670171,0.7408,99723.0,99690.0,0.51257066]
[1746715670378,0.2005717,99700.0,99699.0,0.09064]
[1746715670573,0.2005717,99700.0,99690.0,0.51257066]
[1746715670574,0.2005857,99693.0,99690.0,0.15177066]
[1746715670878,0.9113857,99693.0,99690.0,0.15177066]
[1746715671068,1.1796937,99693.0,99690.0,0.15177066]
[1746715671269,1.18722346,99693.0,99690.0,0.15177066]
[1746715671468,1.21892346,99693.0,99690.0,0.15177066]
[1746715672173,1.21892346,99693.0,99674.0,0.3608]
[1746715672479,0.2006039,99684.0,99674.0,0.3608]
[1746715672674,0.5906039,99684.0,99676.0,0.2006192]
[1746715672864,0.6909199,99684.0,99674.0,0.5614236]
[1746715673071,0.7543199,99684.0,99674.0,0.3608]
[1746715673270,0.9223199,99684.0,99674.0,0.3608]
[1746715673571,0.9223199,99684.0,99683.0,0.00450473]
[1746715674185,0.9223199,99684.0,99683.0,0.00850473]
[1746715674977,1.4223199,99684.0,99683.0,0.00850473]
[1746715676678,1.3220039,99684.0,99683.0,0.00850473]
[1746715681283,1.3220039,99684.0,99683.0,0.02415379]
[1746715682883,0.2006139,99679.0,99678.0,1e-08]
[1746715683179,0.7086139,99679.0,99678.0,1e-08]
[1746715683371,1.0694139,99679.0,99678.0,1e-08]
[1746715684080,1.0694139,99679.0,99678.0,0.00500001]
[1746715684280,0.2006441,99664.0,99663.0,0.04752333]
[1746715684588,0.5606441,99664.0,99663.0,0.04752333]
[1746715685085,0.7286441,99664.0,99663.0,0.04752333]
[1746715685278,0.7907441,99664.0,99663.0,0.04752333]
[1746715685984,0.7907441,99664.0,99663.0,0.05352333]
[1746715686386,0.7907441,99664.0,99663.0,0.01]
[1746715687788,1.2907441,99664.0,99663.0,0.01]
[1746715688787,0.0501631,99660.0,99653.0,0.00100348]
[1746715689090,0.2006904,99641.0,99640.0,0.01187386]
[1746715689288,0.2007045,99634.0,99633.0,0.0306]
[1746715689489,0.5507045,99634.0,99633.0,0.0306]
[1746715689879,0.5507045,99634.0,99633.0,0.04455322]
[1746715690081,0.5507045,99634.0,99633.0,0.24525972]
[1746715690591,1.0507045,99634.0,99633.0,0.27665972]
[1746715690788,1.0507045,99634.0,99633.0,0.28265972]
[1746715691085,0.5,99634.0,99633.0,0.53265972]
[1746715691293,0.13819463,99634.0,99633.0,0.98302771]
[1746715691481,0.03839463,99634.0,99633.0,1.01857578]
[1746715691879,0.03839463,99634.0,99633.0,1.66857578]
[1746715692089,0.2006719,99651.0,99650.0,0.2006703]
[1746715692289,0.2006719,99651.0,99650.0,0.6518703]
[1746715692692,0.2006668,99653.0,99652.0,0.2508308]
[1746715692893,0.4306668,99653.0,99652.0,0.2508308]
[1746715693798,0.9306668,99653.0,99652.0,0.2006642]
[1746715693998,0.9326668,99653.0,99652.0,0.2006642]
[1746715694194,0.732,99653.0,99652.0,0.2006642]
[1746715694395,0.502,99653.0,99652.0,0.31669571]
[1746715694694,0.2006031,99685.0,99684.0,0.2507504]
[1746715694887,0.36,99685.0,99684.0,0.3411545]
[1746715695091,0.002,99693.0,99689.0,0.2005878]
[1746715695291,0.2507376,99691.0,99690.0,0.0328]
[1746715695496,0.6307376,99691.0,99690.0,0.04797468]
[1746715695692,0.5805898,99691.0,99690.0,0.04797468]
[1746715695898,0.5805898,99691.0,99690.0,0.26296484]
[1746715695899,0.38,99691.0,99690.0,0.26296484]
[1746715696091,0.5805898,99691.0,99690.0,0.26296484]
[1746715696392,0.5805898,99691.0,99690.0,0.4466431]
[1746715696598,0.5815898,99691.0,99690.0,0.4466431]
[1746715696800,0.5815898,99691.0,99690.0,0.44664309]
[1746715697195,0.5835898,99691.0,99690.0,0.44664309]
[1746715697401,0.383,99691.0,99690.0,0.44664309]
[1746715697599,0.5835898,99691.0,99690.0,0.44664309]
[1746715698096,0.263,99691.0,99690.0,0.28632566]
[1746715698401,0.003,99691.0,99690.0,0.37668566]
[1746715698998,0.2035898,99691.0,99690.0,0.37668566]
[1746715699198,0.2035898,99691.0,99690.0,0.54468566]
[1746715699506,0.003,99691.0,99690.0,0.54468566]
[1746715700405,0.2035898,99691.0,99690.0,0.54468566]
[1746715700609,0.2035898,99691.0,99690.0,0.54468502]
[1746715703006,0.2035898,99691.0,99690.0,0.45432502]
[1746715703206,0.2035898,99691.0,99690.0,0.54468502]
[1746715703904,0.003,99691.0,99690.0,0.45432502]
[1746715704100,0.003,99691.0,99690.0,0.54468502]
[1746715704604,0.002,99693.0,99692.0,0.2005878]
[1746715704802,0.001,99699.0,99698.0,0.2005757]
[1746715704998,0.001,99699.0,99698.0,0.71705257]
[1746715705193,0.001,99699.0,99698.0,0.98535656]
[1746715705498,0.001,99699.0,99698.0,1.63535656]
[1746715705698,0.001,99699.0,99698.0,1.65053124]
[1746715706608,0.003,99699.0,99698.0,1.65152882]
[1746715708014,0.002,99723.0,99722.0,0.2005274]
[1746715708214,0.4025254,99723.0,99722.0,0.68253653]
[1746715709921,0.4342254,99723.0,99722.0,0.68253653]
[1746715710219,0.65375605,99723.0,99722.0,0.12120913]
[1746715710416,0.65375605,99723.0,99722.0,0.32173643]
[1746715710921,0.65375605,99723.0,99722.0,0.12120903]
[1746715711122,0.65375605,99723.0,99722.0,0.32173643]
[1746715711313,0.65675605,99723.0,99722.0,0.32173643]
[1746715712410,0.45623065,99723.0,99722.0,0.32173646]
[1746715712614,0.357,99723.0,99722.0,0.32173646]
[1746715712819,0.5575254,99723.0,99722.0,0.35373646]
[1746715713021,0.5575254,99723.0,99722.0,0.38513646]
[1746715713820,0.357,99723.0,99722.0,0.38513646]
[1746715714125,0.107,99723.0,99722.0,0.38513646]
[1746715714328,0.107,99723.0,99722.0,0.38513504]
[1746715715220,0.3075254,99723.0,99722.0,0.35313504]
[1746715715418,0.58965605,99723.0,99722.0,0.35313504]
[1746715717331,0.38913065,99723.0,99722.0,0.35313504]
[1746715717521,0.1716,99723.0,99722.0,0.38563504]
[1746715718124,0.3721254,99723.0,99722.0,0.38563504]
[1746715718318,0.3721254,99723.0,99722.0,0.35313496]
[1746715720120,0.1716,99723.0,99722.0,0.35313496]
[1746715720513,0.3721254,99723.0,99722.0,0.35313496]
[1746715721114,0.1716,99723.0,99722.0,0.35313496]
[1746715721330,0.1716,99723.0,99722.0,0.38423496]
[1746715721828,0.1716,99723.0,99722.0,0.35313496]
[1746715722421,0.3721254,99723.0,99722.0,0.35313496]
[1746715722628,0.1716,99723.0,99722.0,0.35313496]
[1746715722827,0.3721254,99723.0,99722.0,0.35313496]
[1746715727434,0.1716,99723.0,99722.0,0.35313496]
[1746715727735,0.3721254,99723.0,99722.0,0.35313496]
[1746715727931,0.1716,99723.0,99722.0,0.35313496]
[1746715728335,0.58965605,99723.0,99722.0,0.12120756]
[1746715728736,0.78965605,99723.0,99722.0,0.12120756]
[1746715729438,0.3716,99723.0,99722.0,0.32173496]
[1746715729738,0.3716,99723.0,99722.0,0.35313496]
[1746715730433,0.3716,99723.0,99722.0,0.38453496]
[1746715732230,0.0716,99723.0,99722.0,0.38453496]
[1746715732428,0.007,99723.0,99722.0,0.38453496]
[1746715733345,0.00198526,99723.0,99722.0,0.58481496]
[1746715733534,0.00198526,99723.0,99722.0,0.76481496]
[1746715733732,0.0025,99728.0,99727.0,0.2005174]
[1746715733936,0.0306,99739.0,99738.0,0.2004952]
[1746715734141,0.3406,99739.0,99738.0,0.58824687]
[1746715734441,0.3406,99739.0,99738.0,0.60342155]
[1746715734635,0.1306,99739.0,99738.0,0.60342155]
[1746715734836,0.1306,99739.0,99738.0,0.63582155]
[1746715735337,0.002,99753.0,99745.0,0.2004812]
[1746715735544,0.002,99753.0,99745.0,0.31751287]
[1746715735735,0.002,99753.0,99745.0,0.32140876]
[1746715735935,0.2004672,99752.0,99745.0,0.32140876]
[1746715736145,0.002,99753.0,99745.0,0.48940876]
[1746715736546,0.0346,99746.0,99745.0,0.48940876]
[1746715737247,0.0356,99746.0,99745.0,0.55280876]
[1746715737843,0.64560987,99746.0,99745.0,0.52150876]
[1746715738143,0.64360987,99746.0,99745.0,0.36405563]
[1746715738539,0.67510987,99746.0,99745.0,0.36405563]
[1746715738750,0.67410987,99746.0,99745.0,0.36405563]
[1746715739047,0.67410987,99746.0,99745.0,0.36605563]
[1746715739350,0.84210987,99746.0,99745.0,0.36605563]
[1746715739846,0.84210987,99746.0,99745.0,0.33395563]
[1746715740045,1.04258907,99746.0,99745.0,0.13347443]
[1746715740442,1.40338907,99746.0,99745.0,0.12592756]
[1746715740640,1.88338907,99746.0,99745.0,0.12592756]
[1746715741656,1.88338907,99746.0,99745.0,0.12292756]
[1746715741945,1.88338907,99746.0,99745.0,0.12392756]
[1746715742942,1.88338907,99746.0,99745.0,0.10825468]
[1746715743244,1.98364507,99746.0,99745.0,0.01617468]
[1746715743453,1.98364507,99746.0,99735.0,0.01345439]
[1746715743454,0.2004993,99737.0,99736.0,0.2004984]
[1746715743751,0.5804993,99737.0,99736.0,0.01532078]
[1746715743952,0.86332995,99737.0,99736.0,0.01532078]
[1746715744142,1.03132995,99737.0,99736.0,0.21582008]
[1746715744853,1.53132995,99737.0,99736.0,0.21586536]
[1746715745150,1.53132995,99737.0,99736.0,0.21686536]
[1746715745351,1.53132995,99737.0,99736.0,0.01636606]
[1746715745538,1.33083065,99737.0,99736.0,0.21686536]
[1746715745952,1.33083065,99737.0,99736.0,0.24986536]
[1746715746245,1.16283065,99737.0,99736.0,0.24986536]
[1746715746851,1.16283065,99737.0,99736.0,0.21886536]
[1746715747154,1.53132795,99737.0,99736.0,0.21886536]
[1746715747350,1.53132795,99737.0,99736.0,0.01836606]
[1746715748047,1.53132795,99737.0,99736.0,0.21886536]
[1746715748751,1.53132795,99737.0,99736.0,0.21917075]
[1746715749050,1.53132795,99737.0,99736.0,0.25087075]
[1746715749651,1.53132795,99737.0,99736.0,0.25187075]
[1746715749845,1.53132795,99737.0,99736.0,0.2631527]
[1746715750550,1.3137973,99737.0,99736.0,0.26315308]
[1746715750749,0.7333,99737.0,99736.0,0.26315308]
[1746715750952,0.7433,99737.0,99736.0,0.29525308]
[1746715751154,0.5753,99737.0,99736.0,0.29525308]
[1746715751358,0.57059898,99737.0,99736.0,0.29425308]
[1746715751552,0.57059898,99737.0,99736.0,0.2942517]
[1746715752259,0.07059898,99737.0,99736.0,0.29455261]
[1746715752458,0.07059898,99737.0,99736.0,0.29255261]
[1746715752654,0.07059898,99737.0,99736.0,0.29555261]
[1746715752856,0.27109628,99737.0,99736.0,0.06095331]
[1746715753156,0.27109628,99737.0,99736.0,0.03325331]
[1746715753956,0.27109628,99737.0,99736.0,0.23375261]
[1746715754157,0.43909628,99737.0,99736.0,0.23364676]
[1746715754358,0.43909628,99737.0,99736.0,0.26664676]
[1746715754555,0.43909628,99737.0,99736.0,0.06314746]
[1746715754756,0.64662693,99737.0,99736.0,0.03214746]
[1746715754961,0.85662693,99737.0,99736.0,0.03214746]
[1746715755158,0.85662693,99737.0,99736.0,0.02914746]
[1746715755355,0.85662693,99737.0,99736.0,0.23164676]
[1746715755747,0.85662693,99737.0,99736.0,0.24731747]
[1746715755961,0.85662693,99737.0,99736.0,0.24737412]
[1746715756455,1.00662693,99737.0,99736.0,0.04687482]
[1746715756655,0.98662693,99737.0,99736.0,0.04687482]
[1746715756854,0.98662693,99737.0,99736.0,0.04487482]
[1746715757054,1.48662693,99737.0,99736.0,0.04687482]
[1746715758757,0.2005133,99729.0,99728.0,0.0974]
[1746715759060,0.74804395,99729.0,99728.0,0.01175522]
[1746715759261,0.84831595,99729.0,99728.0,0.01175522]
[1746715759665,0.87871595,99729.0,99728.0,0.01175522]
[1746715759860,0.2005194,99726.0,99725.0,0.200521]
[1746715760060,0.41805605,99723.0,99722.0,0.8428317]
[1746715760261,0.57753065,99723.0,99722.0,1.0433591]
[1746715760562,0.57753065,99723.0,99722.0,1.4041591]
[1746715760563,0.36,99723.0,99722.0,1.4041591]
[1746715760763,0.0304,99725.0,99724.0,0.2005234]
[1746715760965,0.79845205,99725.0,99724.0,0.2005234]
[1746715761159,0.96645205,99725.0,99724.0,0.2005234]
[1746715761359,0.2005254,99723.0,99722.0,1.16656974]
[1746715761560,0.79805605,99723.0,99722.0,1.16656974]
[1746715761755,0.79805605,99723.0,99722.0,1.36709714]
[1746715762062,0.96605605,99723.0,99722.0,1.36709714]
[1746715762262,0.96605605,99723.0,99722.0,1.37009714]
[1746715763263,0.76553065,99723.0,99722.0,1.37009714]
[1746715763466,0.96605605,99723.0,99722.0,1.37009714]
[1746715763662,0.96605605,99723.0,99722.0,1.37309714]
[1746715764366,1.46605605,99723.0,99722.0,1.17256974]
[1746715764556,1.46104067,99723.0,99722.0,1.37309714]
[1746715765565,1.46104067,99723.0,99722.0,1.17256974]
[1746715766968,1.46104067,99723.0,99722.0,1.1595]
[1746715769671,1.46104067,99723.0,99722.0,1.1728354]
[1746715770671,1.49114067,99723.0,99722.0,1.1595]
[1746715770861,1.49114067,99723.0,99722.0,1.17517418]
[1746715771261,1.49114067,99723.0,99722.0,1.17517429]
[1746715771462,1.49114067,99723.0,99722.0,1.19084858]
[1746715772266,1.49114067,99723.0,99722.0,1.39137598]
[1746715773071,0.5,99723.0,99722.0,1.39137598]
[1746715773476,0.7105254,99723.0,99722.0,1.49369598]
[1746715773967,0.7105254,99723.0,99722.0,1.50523251]
[1746715774360,0.2436254,99723.0,99722.0,1.50523251]